Cogmind - Beta 14 @@@ ROGUE MODE // 2024.10.06 @ 11:12:45 Player: bluemonk Result: Destroyed by G-50 Soldier with Heavy Laser Performance ------------- Evolutions (4) 2000 Regions Visited (8) 1600 Robots Destroyed (36) 180 Value Destroyed (1200) 1200 Prototype IDs (2) 40 Alien Tech Used (0) 0 Bonus (-615) -615 TOTAL SCORE: 4405 Bonus ------- Entered DSFs 500 Friendly Fire -1115 Cogmind --------- Core Integrity 0/850 Matter 217/300 Energy 295/300 System Corruption 2% Temperature Cool (11) Movement Walking (90) Location -6/Extension Parts ------- > --- POWER (2) -------- Enhanced Nuclear Core > --- PROPULSION (5) --- Improved VSS Leg > --- UTILITY (5) ------ Improved Power Shielding Improved Weapon Shielding > --- WEAPON (3) ------- (None) > --- INVENTORY (5) ---- (None) Peak State ------------ > --- POWER ------------ Ion Engine > --- PROPULSION ------- Aluminum Leg Aluminum Leg Carbon-fiber Leg Carbon-fiber Leg > --- UTILITY ---------- Small Storage Unit Reflective Plating Makeshift System Shield > --- WEAPON ----------- Light Assault Rifle YI-UF0's Doublenader Enhanced Flamer > --- INVENTORY -------- Light Ion Engine Light Ion Engine Sensor Array Mini Grenade Launcher Flail Shrapnel Trap [Rating: 25] Favorites ----------- Power Ion Engine Engine Ion Engine Power Core Enhanced Nuclear Core Propulsion Aluminum Leg Treads Medium Treads Leg Aluminum Leg Hover Unit Backup Propulsion I Utility Small Storage Unit Device Particle Charger Storage Small Storage Unit Hackware Makeshift System Shield Protection Weapon Shielding Weapon Light Assault Rifle Energy Gun Small Laser Ballistic Gun Light Assault Rifle Launcher YI-UF0's Doublenader Special Weapon Enhanced Flamer Impact Weapon Flail Slashing Weapon Axe Build | -11 -10 -10 -10 -8 -7 -7 -6 -6 ------- Run | Yrd Mat Min Sub Mat Fac DSF Fac Ext Slots Evolved 8 | . . . . 4 2 . 2 . Power 1 | . . . . . 1 . . . Propulsion 3 | . . . . 2 . . 1 . Utility 3 | . . . . 1 1 . 1 . Weapon 1 | . . . . 1 . . . . Parts Attached 50 | 6 1 5 2 11 3 12 9 1 Power 11 | 1 . 1 . 1 2 3 2 1 Engine 8 | 1 . 1 . 1 2 1 1 1 Core 3 | . . . . . . 2 1 . Reactor . | . . . . . . . . . Propulsion 15 | 2 . 3 . 3 . 4 3 . Treads 2 | . . . . . . 2 . . Leg 13 | 2 . 3 . 3 . 2 3 . Wheel . | . . . . . . . . . Hover . | . . . . . . . . . Flight . | . . . . . . . . . Utility 11 | 1 1 . 1 3 1 1 3 . Device 4 | . . . . 2 . 1 1 . Storage 1 | 1 . . . . . . . . Processor . | . . . . . . . . . Hackware 1 | . . . 1 . . . . . Protection 5 | . 1 . . 1 1 . 2 . Artifact . | . . . . . . . . . Weapon 13 | 2 . 1 1 4 . 4 1 . Energy Gun 1 | 1 . . . . . . . . Energy Cannon . | . . . . . . . . . Ballistic Gun 5 | 1 . . . 1 . 3 . . Ballistic Cannon . | . . . . . . . . . Launcher 4 | . . 1 . 2 . 1 . . Special Weapon 1 | . . . 1 . . . . . Impact Weapon 1 | . . . . 1 . . . . Slashing Weapon 1 | . . . . . . . 1 . Piercing Weapon . | . . . . . . . . . Special Melee Weapon . | . . . . . . . . . Unidentified Prototypes 2 | . . 1 . . . . 1 . Parts Lost 40 | . . 1 . 13 . 16 7 3 Power 10 | . . 1 . 2 . 5 1 1 Propulsion 12 | . . . . 6 . 3 2 1 Utility 7 | . . . . 1 . 3 3 . Weapon 11 | . . . . 4 . 5 1 1 Highest Loss Streak 8 | . . 1 . 8 . 8 5 3 To Critical Strikes . | . . . . . . . . . Average Slot Usage (%) 70 | . 98 100 100 70 60 39 30 38 Engine 8 | . 14 14 14 5 15 5 . 1 Leg 16 | . 28 28 28 16 . 1 7 11 Device 2 | . . . . 4 7 3 7 . Storage 8 | . 14 14 14 9 7 3 . . Hackware 5 | . . . 12 9 7 7 4 . Protection 5 | . 12 14 1 . 6 3 1 13 Energy Gun 4 | . 14 14 2 3 . . . . Ballistic Gun 4 | . 14 10 . 3 . 3 2 . Launcher 5 | . . 3 14 7 7 3 . . Special Weapon 2 | . . . 11 3 . . . . Impact Weapon 1 | . . . . 5 7 2 . . Peak Build Rating 25 | 6 7 14 19 25 17 18 22 25 Average Rating 13 | 4 6 8 18 15 16 14 15 21 On Entrance 12 | . 6 7 14 19 12 17 12 22 Naked Turns . | . . . . . . . . . Heaviest Build 23 | 12 13 18 18 23 23 23 15 20 Greatest Support 56 | 20 20 30 30 50 3 56 30 30 Greatest Overweight (x) 7 | . . . . 4 7 7 4 1 Average Overweight (x) . | . . . . . 7 1 . . Largest Inventory Capacity 8 | 8 8 8 8 8 8 8 5 5 Average Capacity 7 | 6 8 8 8 8 8 6 5 5 Most Carried 8 | 6 8 8 8 7 4 3 2 . Average Carried 4 | 2 7 7 7 4 2 2 . . Final Capacity 8 | 8 8 8 8 8 8 5 5 5 Final Carried 8 | 6 8 8 8 5 3 1 . . Class Distribution -------------------- 73% | Mutant 19% | Scavenger-Mutant 5% | Scavenger-Skirmisher Dominant Class ---------------- Mutant | -10/Materials Mutant | -10/Mines Scavenger-Mutant | -10/Subcaves Mutant | -8/Materials Mutant | -7/Factory Mutant | -7/DSF Mutant | -6/Factory Mutant | -6/Extension Resources | -11 -10 -10 -10 -8 -7 -7 -6 -6 ----------- Run | Yrd Mat Min Sub Mat Fac DSF Fac Ext Matter Collected 1083 | 190 82 86 126 188 . 348 63 . Remotely . | . . . . . . . . . Salvage Created 1005 | . 82 159 77 358 . 268 61 . Parts 46 | . 4 7 3 19 . 11 2 . Haulers Intercepted . | . . . . . . . . . Recyclers Shooed . | . . . . . . . . . Parts Field Recycled . | . . . . . . . . . Retrieved Matter . | . . . . . . . . . Parts Self-Destructed 1 | . . . 1 . . . . . Prevented . | . . . . . . . . . Kills | -11 -10 -10 -10 -8 -7 -7 -6 -6 ------- Run | Yrd Mat Min Sub Mat Fac DSF Fac Ext Combat Hostiles Destroyed 32 | . 2 3 5 14 . 7 1 . Melee 1 | . . . . . . . 1 . Guns 13 | . 2 3 . 1 . 7 . . Cannons 1 | . . . . 1 . . . . AOE 16 | . . . 5 11 . . . . Classes Destroyed 8 | . 1 1 1 4 . 1 . . Worker 1 | . . . . 1 . . . . Recycler 2 | . . . . 2 . . . . Swarmer 12 | . . 3 3 3 . 3 . . Grunt 9 | . 2 . . 6 . . 1 . Sentry 4 | . . . . 4 . . . . Specialist 4 | . . . . . . 4 . . Hunter 1 | . . . . 1 . . . . Subdweller 2 | . . . 2 . . . . . Best Kill Streak 6 | . 2 3 3 6 . 3 1 . Combat Bots Only 6 | . 2 3 3 6 . 3 1 . Max Kills in Single Turn 3 | . 1 1 3 2 . 1 1 . Gunslinging . | . . . . . . . . . Exploded 3 | . . . 3 2 . . . . Melee 1 | . . . . . . . 1 . Uniques/NPCs Destroyed 1 | . . 1 . . . . . . YI-UF0 (-10/Mines) Combat | -11 -10 -10 -10 -8 -7 -7 -6 -6 -------- Run | Yrd Mat Min Sub Mat Fac DSF Fac Ext Hostile Shots Fired 587 | . 17 22 7 125 . 246 144 26 Missed 202 | . 2 5 2 32 . 106 48 7 Damage Taken 5422 | . 216 126 52 1390 . 2039 1235 364 Core 1948 | . 24 29 10 416 . 605 751 113 Absorbed by Shields 36 | . . . . . . 36 . . Redirected to Shielding 106 | . 17 4 . . . . . 85 Ignored by Resistances 14 | . . . . 14 . . . . Regen/Repaired (Parts) 40 | . . . . 40 . . . . Core Remaining (%) 52 | 100 . . 74 24 . 13 . . Volleys Fired 120 | . 14 29 8 44 . 25 . . Largest 2 | . 2 2 1 2 . 1 . . Hottest 100 | . 60 60 70 100 . 33 . . Shots Fired 171 | . 28 52 8 58 . 25 . . Gun 135 | . 28 52 . 31 . 24 . . Cannon . | . . . . . . . . . Launcher 31 | . . . 8 22 . 1 . . Special 5 | . . . . 5 . . . . Kinetic 88 | . 14 29 . 21 . 24 . . Thermal 52 | . 14 23 . 15 . . . . Explosive 31 | . . . 8 22 . 1 . . Electromagnetic . | . . . . . . . . . Robot Hit Streak 12 | . 9 4 10 12 . 5 . . Robot Miss Streak 6 | . 4 6 1 4 . 3 . . Penetration Max . | . . . . . . . . . Secondary Targets 1 | . . 1 . . . . . . Max Gunslinging Chain 1 | . . 1 . . . . . . Shots Hit Robots 126 | . 17 27 5 49 . 21 4 3 Core Hits 70 | . 7 11 5 32 . 12 2 1 Critical Kills . | . . . . . . . . . Critical Parts Destroyed 1 | . . . . 1 . . . . Critical Strikes 4 | . . . . 2 . 1 . 1 Burn 1 | . . . . 1 . . . . Smash 2 | . . . . 1 . 1 . . Sever 1 | . . . . . . . . 1 Melee Attacks 18 | . . . . 5 . 2 7 4 Impact 7 | . . . . 5 . 2 . . Slashing 11 | . . . . . . . 7 4 Piercing . | . . . . . . . . . Sneak Attacks . | . . . . . . . . . Combat Hostiles . | . . . . . . . . . Follow-up Attacks . | . . . . . . . . . Damage Inflicted 3679 | . 159 259 444 2020 . 554 141 102 Guns 1005 | . 159 259 . 201 . 386 . . Cannons . | . . . . . . . . . Explosions 2194 | . . . 444 1653 . 97 . . Melee 439 | . . . . 125 . 71 141 102 Ramming . | . . . . . . . . . Kinetic 702 | . 70 125 . 121 . 386 . . Thermal 444 | . 89 134 . 221 . . . . Explosive 2094 | . . . 444 1553 . 97 . . Electromagnetic . | . . . . . . . . . Impact 196 | . . . . 125 . 71 . . Slashing 243 | . . . . . . . 141 102 Piercing . | . . . . . . . . . Highest Corruption . | . . . . . . . . . Average Corruption . | . . . . . . . . . Corruption Purged . | . . . . . . . . . Corruption Blocked . | . . . . . . . . . Overload Shots . | . . . . . . . . . Overflow Damage 82 | . . . 21 60 . . 1 . Projectiles . | . . . . . . . . . Explosions 45 | . . . 21 24 . . . . Melee 37 | . . . . 36 . . 1 . Knockbacks 2 | . . . . . . 2 . . Impact 2 | . . . . . . 2 . . Kinetic . | . . . . . . . . . Secondary . | . . . . . . . . . Self-Inflicted Damage 162 | . . . . 162 . . . . Shots 7 | . . . . 7 . . . . Rammed . | . . . . . . . . . Targets Rammed . | . . . . . . . . . Kicked . | . . . . . . . . . Crushed . | . . . . . . . . . Highest Temperature 127 | . 127 40 . 97 . . . . Average Temperature 34 | . 49 17 . 39 . . . . Received Heat Transfer 870 | . 126 . . 369 . 9 240 126 Siege Activations . | . . . . . . . . . Robots Corrupted 1 | . . . . 1 . . . . Combat Hostiles 1 | . . . . 1 . . . . Parts Fried 2 | . . . . 2 . . . . Impact Corruptions 2 | . . . . 2 . . . . Robots Melted . | . . . . . . . . . Combat Hostiles . | . . . . . . . . . Parts Melted 1 | . . . . 1 . . . . Heat Transferred 1363 | . 200 300 . 863 . . . . Parts Sabotaged . | . . . . . . . . . Parts Stolen . | . . . . . . . . . Parts Stripped . | . . . . . . . . . Power Chain Reactions . | . . . . . . . . . Alert | -11 -10 -10 -10 -8 -7 -7 -6 -6 ------- Run | Yrd Mat Min Sub Mat Fac DSF Fac Ext Peak Influence 396 | . 79 90 . 396 168 209 139 85 Initial 163 | . . 30 . 58 163 117 109 55 Average 125 | . 22 81 . 241 163 123 111 69 Maximum Alert Level 1 | . . . . 1 . 1 . . Low Security (%) 86 | 100 100 100 . 42 100 99 100 100 Level 1 13 | . . . . 57 . . . . Level 2 . | . . . . . . . . . Level 3 . | . . . . . . . . . Level 4 . | . . . . . . . . . Level 5 . | . . . . . . . . . High Security . | . . . . . . . . . Max Security . | . . . . . . . . . Squads Dispatched 5 | . . . . 3 . 2 . . Investigation 1 | . . . . 1 . . . . Extermination . | . . . . . . . . . Reinforcement 3 | . . . . 1 . 2 . . Assault . | . . . . . . . . . Garrison 1 | . . . . 1 . . . . Intercept . | . . . . . . . . . Searches Triggered . | . . . . . . . . . Construction Impeded . | . . . . . . . . . Haulers Reinforced . | . . . . . . . . . Active Scanning Responses . | . . . . . . . . . Cargo Convoy Interrupts . | . . . . . . . . . Stealth | -11 -10 -10 -10 -8 -7 -7 -6 -6 --------- Run | Yrd Mat Min Sub Mat Fac DSF Fac Ext Distress Signals . | . . . . . . . . . Communications Jammed . | . . . . . . . . . Distress Signals . | . . . . . . . . . Times Spotted 53 | . 3 3 4 19 . 15 5 4 Peak Tracking Total 7 | . 2 3 3 7 . 5 3 4 Tactical Retreats 6 | . . . . 2 . 3 1 . Traps | -11 -10 -10 -10 -8 -7 -7 -6 -6 ------- Run | Yrd Mat Min Sub Mat Fac DSF Fac Ext Traps Triggered 3 | . . . . 1 . 1 . 1 Indirectly . | . . . . . . . . . Trap Hack Attempts . | . . . . . . . . . Triggered . | . . . . . . . . . Disarmed . | . . . . . . . . . Reprogrammed . | . . . . . . . . . Reused 1 | . . . . . . . 1 . Traps Extracted . | . . . . . . . . . Installed 1 | . . . . . . . 1 . Triggered 1 | . . . . . . . 1 . Most Traps Carried 1 | . . . 1 1 1 1 1 . Machines | -11 -10 -10 -10 -8 -7 -7 -6 -6 ---------- Run | Yrd Mat Min Sub Mat Fac DSF Fac Ext Machines Disabled 6 | . . . . 4 . 1 . 1 Max in Single Turn 2 | . . . . 2 . 1 . 1 Machines Repaired . | . . . . . . . . . Machines Dismantled . | . . . . . . . . . Machines Sabotaged . | . . . . . . . . . Overloaded Fab Kills . | . . . . . . . . . Hacking | -11 -10 -10 -10 -8 -7 -7 -6 -6 --------- Run | Yrd Mat Min Sub Mat Fac DSF Fac Ext Machines Accessed 11 | . 3 . . 2 1 . 4 1 Terminals 7 | . 1 . . 1 1 . 3 1 Fabricators . | . . . . . . . . . Repair Stations 1 | . . . . 1 . . . . Recycling Units 3 | . 2 . . . . . 1 . Scanalyzers . | . . . . . . . . . Garrison Access . | . . . . . . . . . Total Hacks 28 | . 5 . . 12 1 . 7 3 Successful 16 | . 3 . . 7 1 . 4 1 Failed 12 | . 2 . . 5 . . 3 2 Catastrophic 2 | . 1 . . 1 . . . . Database Lockouts . | . . . . . . . . . Manual . | . . . . . . . . . Terminals 18 | . 2 . . 6 1 . 6 3 Fabricators . | . . . . . . . . . Repair Stations 6 | . . . . 6 . . . . Recycling Units 4 | . 3 . . . . . 1 . Scanalyzers . | . . . . . . . . . Garrison Access . | . . . . . . . . . Terminal Hacks 10 | . 1 . . 4 1 . 3 1 Record 2 | . . . . . . . 1 1 Open Door 1 | . . . . . . . 1 . Open DSF 1 | . . . . . 1 . . . Emergency Access Points 1 | . . . . 1 . . . . Alert Level 1 | . . . . . . . 1 . Locate Traps 2 | . 1 . . 1 . . . . Investigation Status 1 | . . . . 1 . . . . Hauler Manifests 1 | . . . . 1 . . . . Fabricator Hacks . | . . . . . . . . . Repair Station Hacks 3 | . . . . 3 . . . . Scan Component 1 | . . . . 1 . . . . Repair 1 | . . . . 1 . . . . Refit 1 | . . . . 1 . . . . Recycling Unit Hacks 3 | . 2 . . . . . 1 . Report Inventory 3 | . 2 . . . . . 1 . Scanalyzer . | . . . . . . . . . Garrison Access Hacks . | . . . . . . . . . Unauthorized Hacks . | . . . . . . . . . Terminals . | . . . . . . . . . Fabricators . | . . . . . . . . . Repair Stations . | . . . . . . . . . Recycling Units . | . . . . . . . . . Scanalyzers . | . . . . . . . . . Garrison Access . | . . . . . . . . . Data Cores Recovered . | . . . . . . . . . Used . | . . . . . . . . . Hacking Detections 7 | . 2 . . 2 . . 2 1 Full Trace Events . | . . . . . . . . . Feedback Events . | . . . . . . . . . Feedback Blocked . | . . . . . . . . . Robot Schematics Acquired . | . . . . . . . . . Robots Built . | . . . . . . . . . Authchips . | . . . . . . . . . Time . | . . . . . . . . . Total Robot Build Rating . | . . . . . . . . . Part Schematics Acquired . | . . . . . . . . . Parts Built . | . . . . . . . . . Authchips . | . . . . . . . . . Time . | . . . . . . . . . Total Part Build Rating . | . . . . . . . . . Parts Repaired 1 | . . . . 1 . . . . Time 32 | . . . . 32 . . . . Parts Recycled . | . . . . . . . . . Recycled Matter . | . . . . . . . . . Retrieved Matter . | . . . . . . . . . Retrieved Components . | . . . . . . . . . Parts Scanalyzed . | . . . . . . . . . Part Schematics Acquired . | . . . . . . . . . Parts Damaged . | . . . . . . . . . Bothacking | -11 -10 -10 -10 -8 -7 -7 -6 -6 ------------ Run | Yrd Mat Min Sub Mat Fac DSF Fac Ext Used RIF Installer . | . . . . . . . . . Robots Hacked . | . . . . . . . . . Non-combat . | . . . . . . . . . Combat . | . . . . . . . . . Robot Hacks Applied . | . . . . . . . . . Relay Couplers Released . | . . . . . . . . . Fabnet Peak Effective % . | . . . . . . . . . Robots Rewired . | . . . . . . . . . Allies Hacked . | . . . . . . . . . Hacks Repelled . | . . . . . . . . . Allies | -11 -10 -10 -10 -8 -7 -7 -6 -6 -------- Run | Yrd Mat Min Sub Mat Fac DSF Fac Ext Total Allies . | . . . . . . . . . Largest Group . | . . . . . . . . . Highest-Rated Group . | . . . . . . . . . Highest-Rated Ally . | . . . . . . . . . Total Orders . | . . . . . . . . . Ally Attacks . | . . . . . . . . . Total Damage . | . . . . . . . . . Kills . | . . . . . . . . . Allies Corrupted . | . . . . . . . . . Allies Melted . | . . . . . . . . . Intel | -11 -10 -10 -10 -8 -7 -7 -6 -6 ------- Run | Yrd Mat Min Sub Mat Fac DSF Fac Ext Robot Analysis Total . | . . . . . . . . . Derelict Logs Recovered . | . . . . . . . . . Drone Launches . | . . . . . . . . . Drone Recoveries . | . . . . . . . . . Exploration | -11 -10 -10 -10 -8 -7 -7 -6 -6 ------------- Run | Yrd Mat Min Sub Mat Fac DSF Fac Ext Turns Passed 2405 | 79 208 398 381 471 120 303 354 91 Spaces Moved 1439 | 56 131 218 298 205 30 119 308 74 Core 132 | 4 . . . 39 30 54 5 . Treads 29 | . . . . . . 29 . . Legs 1278 | 52 131 218 298 166 . 36 303 74 Wheels . | . . . . . . . . . Hover . | . . . . . . . . . Flight . | . . . . . . . . . Fastest Speed 50 | 50 120 120 120 120 400 90 90 90 Average Speed 128 | 115 120 120 120 139 400 185 100 103 Slowest Speed 400 | 120 120 120 120 250 400 400 250 180 Overloaded Moves . | . . . . . . . . . Propulsion Burnouts . | . . . . . . . . . Robots Hopped . | . . . . . . . . . Cave-ins Triggered . | . . . . . . . . . Exploration Rate (%) 24 | 4 34 54 22 19 1 63 11 15 Regions Visited 8 Branch Regions 3 Pre-discovered Areas . | . . . . . . . . . Known Exits Taken 1 | . . . . . 1 . . . Unknown Exits Taken 6 | 1 1 1 1 1 . . 1 . Scrap Searched . | . . . . . . . . . Spaces Dug . | . . . . . . . . . Terrain Destroyed 197 | . . . 35 155 . 7 . . Melee . | . . . . . . . . . Projectile . | . . . . . . . . . AOE 197 | . . . 35 155 . 7 . . Terrain Rammed . | . . . . . . . . . Walls Destroyed . | . . . . . . . . . Machines Disabled . | . . . . . . . . . Actions | -11 -10 -10 -10 -8 -7 -7 -6 -6 --------- Run | Yrd Mat Min Sub Mat Fac DSF Fac Ext Total 1791 | 67 159 309 314 325 33 167 336 81 Wait 119 | . 4 52 . 52 . . 9 2 Move 1431 | 55 130 217 297 204 29 118 307 74 Hop . | . . . . . . . . . Pick Up 27 | 6 6 2 3 7 1 . 2 . Fast Attach 28 | 6 1 1 1 1 . 10 7 1 Attach 16 | . . 1 . 8 3 2 2 . Detach . | . . . . . . . . . Swap 6 | . . 3 1 2 . . . . Drop 15 | . 4 4 4 2 . . 1 . Fire 120 | . 14 29 8 44 . 25 . . Melee 18 | . . . . 5 . 2 7 4 Ram . | . . . . . . . . . Kick . | . . . . . . . . . Crush . | . . . . . . . . . Escape Stasis 10 | . . . . . . 10 . . Rewire . | . . . . . . . . . Trap 1 | . . . . . . . 1 . Miscellaneous . | . . . . . . . . . Route ------- -11/Scrapyard -10/Materials -10/Mines -10/Subcaves -8/Materials (discovered 2 exits: *Fac / [*Sto]) -7/Factory -7/DSF -6/Factory -6/Extension History --------- Turn | Location | Event 11 | -11/Scrapyard | Discovered new exit (range 15) 80 | -11/Scrapyard | Entered Materials 258 | -10/Materials | Discovered new exit (range 16) 288 | -10/Materials | Entered Mines 304 | -10/Mines | Build established: Mutant 431 | -10/Mines | YI-UF0 nonchalantly dropped a Grenade Launcher on the ground 563 | -10/Mines | Murdered YI-UF0 586 | -10/Mines | Found Prototype Launcher 586 | -10/Mines | Identified YI-UF0's Doublenader 667 | -10/Mines | Discovered new exit (range 4) 686 | -10/Mines | Entered Subcaves 687 | -10/Subcaves | Shifting Twisted Machinery released Shrapnel Trap 717 | -10/Subcaves | Shifting Twisted Machinery released Mak. System Shield 753 | -10/Subcaves | Shifting Twisted Machinery released Enh. Flamer 760 | -10/Subcaves | Shifting Twisted Machinery released Sub. Monowheel 879 | -10/Subcaves | Build established: Scavenger-Mutant 1015 | -10/Subcaves | Discovered new exit (range 16) 1067 | -10/Subcaves | Entered Materials 1067 | -8/Materials | Evolved 4 slots: Propulsion x2, Utility x1, Weapon x1 1286 | -8/Materials | Lost 8 parts (1p3n1u3w) 1348 | -8/Materials | Repaired Mni. Grenade Launcher 1357 | -8/Materials | Discovered new exit (range 3) 1466 | -8/Materials | Discovered new exit (range 16) 1474 | -8/Materials | Core integrity fell below 50% 1484 | -8/Materials | Garrison activated, responded to threat 1525 | -8/Materials | Build established: Mutant 1538 | -8/Materials | Entered Factory 1538 | -7/Factory | Evolved 2 slots: Power x1, Utility x1 1654 | -7/Factory | Identified exit to DSF 1658 | -7/Factory | Entered DSF 1737 | -7/DSF | Additional patrols routed to DSF 1825 | -7/DSF | Lost 8 parts (2p1n3u2w) 1863 | -7/DSF | Core integrity fell below 50% 1888 | -7/DSF | Lost 3 parts (1p1n1w) 1919 | -7/DSF | Core integrity fell below 20% 1942 | -7/DSF | Discovered new exit (range 16) 1961 | -7/DSF | Entered Factory 1961 | -6/Factory | Evolved 2 slots: Propulsion x1, Utility x1 1971 | -6/Factory | Lost 5 parts (2p1n2w) 2145 | -6/Factory | Spotted B-75 Beast 2169 | -6/Factory | Core integrity fell below 50% 2205 | -6/Factory | Core integrity fell below 20% 2211 | -6/Factory | Lost 5 parts (1p2n2u) 2306 | -6/Factory | Discovered new exit (range 10) 2315 | -6/Factory | Entered Extension 2331 | -6/Extension | Disrupted transfer network 2406 | -6/Extension | Destroyed by G-50 Soldier with Heavy Laser Last Messages --------------- GOAL=ESCAPE Transfer Station disabled. ALERT: Transfer network disrupted, dispatching additional forces. W-25 Informer Lgt. Deuterium Engine severed. Acquired Lgt. Deuterium Engine. Carbon-fiber Leg destroyed. Axe destroyed. Lgt. Deuterium Engine destroyed. Connecting with Terminal... Current location identified: Extension >>Query(Propulsion Arrays) A number of hover and flight unit designs have been linked into combined modules balanced for greater mass support than when used individually. Pre-balanced arrays also save on robot assembly time. Triggered Shock Trap. The floor emits a surge of raw power. System corrupted (+2). Map ----- +----------------------------------------------------+ | | | | | | | | | | | | | | | | | | | ?????????????????????????????????????????????????? | | ?????????????????????????????????????????????????? | | ?????????????????????????????????????????????????? | | ???????###########???????????????????????????????? | | ??????? ????????????????????????????????? | | ?????? #????????????????????????????????? | | ?????? #????????????????????????????????? | | ?????? #????????????????????????????????? | | ??????? #????????????????????????????????? | | ????????# ######???????????????????????????? | | ????????# #???????????????????????????? | | ######### #???????????????????????????? | | ###################?????????? | | u ?????????? | | g #????????? | | ##########/##### #????????? | | #????# g g @ +????????? | | #????# #####" ############???????????????? | | #????# #???#"T#??????????????????????????? | | #????# #???####??????????????????????????? | | #????###########?????????????????????????????????? | | #????????????????????????????????????????????????? | | #????????????????????????????????????????????????? | | #????????????????????????????????????????????????? | | #????????????????????????????????????????????????? | | #????????????????????????????????????????????????? | | #????????????????????????????????????????????????? | | #????????????????????????????????????????????????? | | #????????????????????????????????????????????????? | | #????????????????????????????????????????????????? | | #????????????????????????????????????????????????? | | #????????????????????????????????????????????????? | | #????????????????????????????????????????????????? | | #????????????????????????????????????????????????? | | #####????????????????????????????????????????????? | | "" #????????????????????????????????????????????? | | " ##########???????????????????????????????????? | | ??????????????????????????????????? | | ??????????????????????????????????? | | ??????????????????????????????????? | | ??????????????????????????????????? | +----------------------------------------------------+ Best States ------------- Heat Dissipation 51 Energy Generation 26 Energy Capacity 800 Matter Stores 300 Matter Capacity 300 Sight Range 16 Robot Scan Range 14 Terrain Scan Density 10 Armor Coverage 225 Resistance: TH 10 Power Shielding 66 Weapon Shielding 66 Evasion (%) 57 Recoil Reduction 2 Particle Charging 15 Defensive Hacking 11 Item Schematics ----------------- None Robot Schematics ------------------ None Fabricated ------------ Nothing Alien Tech Used ----------------- None Achievements -------------- Collateral Damage Challenges ------------ None Game ------ Seed DiametricBeamMapper Manual? 0 Play Time 00:32:04 Cumulative 24.1 hours Start 2024.10.06 @ 10:40:26 End 2024.10.06 @ 11:12:45 Sessions 1 Manual Loads 0 Difficulty Rogue Special Mode None Game No. 39 Rogue 39 Adventurer 0 Explorer 0 Win Type - Total 0 Types 0/0/0/0/0/0/0/0/0 Lore% 9 Gallery% 30 Achievement% 21 Wizard Run 0 Options --------- Layout 1 ASCII 0 Keyboard 0 Movement Numpad Keybinds 0 Fullscreen 1 Font 24/Smallcaps Map View 50x35 Zoom Use 0% Tactical HUD 0 Map Filters NONE Filters NONE Steam 1 RUN: 29e30e5e-0985-483d-ba70-baba1c7fd4b8